bitfinex/quotes_BTCUSD_20250412
["timestamp","ask_amount","ask_price","bid_price","bid_amount"]
[1744465872424,0.181,84183.0,84182.0,0.01456241]
[1744465873246,0.181,84183.0,84182.0,0.0101388]
[1744465873748,0.181,84183.0,84182.0,0.0001388]
[1744465873749,0.18,84183.0,84182.0,0.0001388]
[1744465873920,0.2251,84183.0,84182.0,0.0011388]
[1744465874127,0.2251,84183.0,84182.0,0.0051388]
[1744465874320,0.34594154,84183.0,84182.0,0.0051388]
[1744465875050,0.34594154,84183.0,84182.0,0.0041388]
[1744465875265,0.2251,84183.0,84182.0,0.0041388]
[1744465875465,0.2251,84183.0,84182.0,0.0001388]
[1744465875466,0.18,84183.0,84182.0,0.0001388]
[1744465875677,0.18,84183.0,84182.0,0.2387188]
[1744465875898,0.18,84183.0,84182.0,0.0011388]
[1744465876992,0.18,84183.0,84182.0,0.0001388]
[1744465877295,0.18,84183.0,84182.0,0.01156174]
[1744465877442,0.18,84183.0,84182.0,0.00856174]
[1744465877843,0.18,84183.0,84182.0,0.01256174]
[1744465878266,0.18,84183.0,84182.0,0.01456174]
[1744465885571,0.18,84183.0,84182.0,0.0071388]
[1744465887798,0.39724154,84183.0,84182.0,0.0071388]
[1744465887997,0.75178239,84183.0,84182.0,0.0071388]
[1744465888842,0.237648,84158.0,84157.0,0.0004227]
[1744465889167,0.237648,84158.0,84157.0,0.0005615]
[1744465889168,0.397648,84158.0,84157.0,0.0005615]
[1744465890111,0.59219685,84155.0,84154.0,0.07132168]
[1744465890316,0.86303839,84155.0,84154.0,0.07146055]
[1744465890533,0.8717631,84155.0,84154.0,0.07146055]
[1744465891154,0.8717631,84155.0,84154.0,0.00013887]
[1744465891831,0.8717631,84155.0,84154.0,0.00113887]
[1744465892027,0.8717631,84155.0,84154.0,8.7e-07]
[1744465892198,0.01454085,84140.0,84138.0,2.7e-07]
[1744465892401,0.75928339,84139.0,84138.0,0.00046295]
[1744465892601,0.92928339,84139.0,84138.0,0.00046295]
[1744465893359,0.92928339,84139.0,84130.0,0.07132168]
[1744465893360,0.63846485,84131.0,84130.0,0.07132168]
[1744465893605,0.92930639,84131.0,84130.0,0.07132168]
[1744465894045,0.59227285,84128.0,84127.0,0.0004233]
[1744465894191,0.88311439,84128.0,84127.0,0.0004233]
[1744465896179,0.89184254,84128.0,84127.0,0.0004233]
[1744465896377,0.747732,84128.0,84127.0,0.0004233]
[1744465896582,0.747732,84128.0,84127.0,0.0014233]
[1744465897418,0.17,84128.0,84127.0,0.0014233]
[1744465899668,0.00046274,84139.0,84136.0,0.011885]
[1744465899902,0.16046274,84139.0,84138.0,0.237704]
[1744465900104,0.16046274,84139.0,84136.0,0.249593]
[1744465900311,0.16046274,84139.0,84138.0,0.237704]
[1744465900518,0.17234774,84139.0,84133.0,0.249602]
[1744465900730,0.17234774,84139.0,84135.0,0.249598]
[1744465900949,0.00046274,84139.0,84137.0,0.237706]
[1744465902500,0.00046274,84139.0,84138.0,0.00237678]
[1744465902740,0.41816474,84139.0,84137.0,0.002]
[1744465902991,0.41916474,84139.0,84137.0,0.002]
[1744465903543,0.41916474,84139.0,84137.0,0.005]
[1744465903729,0.16614154,84138.0,84137.0,0.005]
[1744465903935,0.34614154,84138.0,84137.0,0.005]
[1744465904138,0.70068239,84138.0,84137.0,0.005]
[1744465904583,0.70068239,84138.0,84137.0,0.003]
[1744465904771,0.25227285,84128.0,84127.0,0.0004233]
[1744465904971,0.55311439,84128.0,84127.0,0.0004233]
[1744465906414,0.18,84128.0,84127.0,0.35899984]
[1744465906609,0.011885,84136.0,84127.0,0.0004233]
[1744465906827,0.12,84136.0,84133.0,0.237718]
[1744465907047,0.12,84136.0,84133.0,0.011885]
[1744465907294,0.00046274,84139.0,84138.0,0.237704]
[1744465907493,0.00046274,84139.0,84138.0,0.24008077]
[1744465907649,0.00046274,84139.0,84138.0,0.237704]
[1744465908286,0.00046274,84139.0,84138.0,0.24008077]
[1744465908997,0.00046274,84139.0,84138.0,0.24308077]
[1744465909567,0.00046274,84139.0,84138.0,0.24008077]
[1744465909765,0.00046274,84139.0,84138.0,0.24308077]
[1744465910214,0.00146274,84139.0,84138.0,0.24908077]
[1744465910435,0.00046274,84139.0,84138.0,0.240704]
[1744465910866,0.00146274,84139.0,84138.0,0.246704]
[1744465911065,0.00146274,84139.0,84138.0,0.237704]
[1744465911378,0.00246274,84139.0,84138.0,0.245704]
[1744465911728,0.00246274,84139.0,84138.0,0.2480808]
[1744465911933,0.00246274,84139.0,84138.0,0.2450808]
[1744465912126,0.00246274,84139.0,84138.0,0.242704]
[1744465912315,0.00246274,84139.0,84138.0,0.245704]
[1744465913167,0.24016374,84139.0,84138.0,0.008]
[1744465913458,0.01246274,84139.0,84138.0,0.008]
[1744465915319,0.01246274,84139.0,84138.0,0.245704]
[1744465916167,0.01246274,84139.0,84138.0,0.008]
[1744465916340,0.25016374,84139.0,84138.0,0.008]
[1744465916545,0.29916374,84139.0,84138.0,0.008]
[1744465917407,0.01246274,84139.0,84138.0,0.008]
[1744465920668,0.01246274,84139.0,84138.0,0.245704]
[1744465921414,0.01246274,84139.0,84138.0,0.008]
[1744465922272,0.00246274,84139.0,84138.0,0.01037682]
[1744465923079,0.00246274,84139.0,84138.0,0.0178042]
[1744465923483,7.4e-07,84139.0,84138.0,0.9309669]
[1744465923687,0.249436,84190.0,84178.0,0.011879]
[1744465924044,0.049,84196.0,84186.0,0.249445]
[1744465924045,0.1508468,84189.0,84186.0,0.249445]
[1744465924244,0.1508468,84189.0,84188.0,0.237563]
[1744465924449,0.1508468,84189.0,84188.0,0.23993856]
[1744465924639,0.011878,84185.0,84181.0,0.237581]
[1744465924850,0.02,84185.0,84183.0,0.011878]
[1744465925031,0.02,84185.0,84184.0,0.237574]
[1744465925208,0.02,84185.0,84183.0,0.011878]
[1744465925411,0.02,84185.0,84182.0,0.23758]
[1744465925610,0.02,84185.0,84182.0,0.249459]
[1744465925815,0.02,84185.0,84184.0,0.237574]
[1744465926385,0.01990061,84185.0,84184.0,0.237574]
[1744465926676,0.237574,84184.0,84182.0,0.004]
[1744465926839,0.297574,84184.0,84182.0,0.004]
[1744465927044,0.309452,84184.0,84181.0,0.00013893]
[1744465927254,0.06,84184.0,84183.0,0.237577]
[1744465927455,0.06,84184.0,84183.0,0.35841854]
[1744465928220,0.06,84184.0,84183.0,0.12084154]
[1744465928429,0.06,84184.0,84182.0,0.002]
[1744465928635,0.06,84184.0,84182.0,0.36041854]
[1744465928836,0.06,84184.0,84183.0,0.12084154]
[1744465929348,0.0008468,84189.0,84186.0,0.011878]
[1744465929593,0.0708468,84189.0,84188.0,0.237563]
[1744465929798,0.0708468,84189.0,84188.0,0.35840454]
[1744465929997,0.0008468,84189.0,84188.0,0.35840454]
[1744465930200,0.0008468,84189.0,84188.0,0.36582558]
[1744465931359,0.0008468,84189.0,84188.0,0.79656441]
[1744465931572,8e-07,84189.0,84188.0,1.13656441]
[1744465931756,0.0008464,84207.0,84206.0,0.237512]
[1744465931891,0.0008464,84207.0,84206.0,0.98171152]
[1744465932110,0.0008464,84207.0,84206.0,1.00367341]
[1744465932315,0.0008464,84207.0,84206.0,1.00467341]
[1744465932562,0.0008464,84207.0,84206.0,1.34467341]
[1744465932766,0.0008466,84216.0,84215.0,0.237487]
[1744465932912,0.0008466,84216.0,84215.0,0.35832854]
[1744465933316,0.0008466,84216.0,84215.0,0.36574958]
[1744465933970,0.0018466,84216.0,84215.0,0.84662734]
[1744465934369,1e-06,84217.0,84216.0,0.001]
[1744465934627,1e-06,84217.0,84216.0,0.89437515]
[1744465934879,1e-06,84217.0,84216.0,0.89200141]
[1744465935245,1e-06,84217.0,84216.0,1.10712141]
[1744465935544,2e-07,84221.0,84220.0,0.01554085]
[1744465935745,2e-07,84229.0,84228.0,0.001]
[1744465935978,2e-07,84229.0,84228.0,1.22440384]
[1744465936188,0.0008468,84240.0,84239.0,0.25295985]
[1744465936534,0.0008468,84240.0,84239.0,0.58892139]
[1744465936875,0.0008468,84240.0,84239.0,0.59634243]
[1744465937076,0.0008468,84240.0,84239.0,0.58080158]
[1744465937308,0.0008468,84240.0,84239.0,0.38022243]
[1744465937509,0.0008468,84240.0,84239.0,0.59830243]
[1744465937711,0.0008468,84240.0,84239.0,0.94030243]
[1744465938005,0.0008468,84240.0,84239.0,0.94230243]
[1744465938199,0.0008448,84250.0,84249.0,0.25293185]
[1744465938403,0.0008464,84270.0,84267.0,0.249207]
[1744465938632,0.0008464,84270.0,84269.0,0.237335]
[1744465938801,0.0008464,84270.0,84269.0,0.35817654]
[1744465939001,0.0008464,84270.0,84269.0,0.36559054]
[1744465939409,0.00130999,84270.0,84269.0,0.36559054]
[1744465939635,0.00130999,84270.0,84269.0,0.35817654]
[1744465940027,0.00130999,84270.0,84269.0,0.004]
[1744465940258,0.02130999,84270.0,84269.0,0.005]
[1744465940413,0.02130999,84270.0,84269.0,0.004]
[1744465940617,0.02130999,84270.0,84268.0,0.452417]
[1744465940819,0.02130999,84270.0,84269.0,0.003]
[1744465941455,0.25864199,84270.0,84269.0,0.003]
[1744465942183,0.25864199,84270.0,84238.0,0.40819798]
[1744465942184,0.01187,84241.0,84238.0,0.40819798]
[1744465942412,0.011872,84228.0,84225.0,0.40819798]
[1744465942586,0.011874,84215.0,84211.0,1.43136]
[1744465942815,0.011874,84215.0,84207.0,0.30883068]
[1744465942816,0.011874,84211.0,84207.0,0.08319668]
[1744465943051,0.23749,84214.0,84207.0,0.07132168]
[1744465943052,0.237507,84208.0,84207.0,0.07132168]
[1744465943252,0.417507,84208.0,84207.0,0.07132168]
[1744465943462,0.417507,84208.0,84201.0,0.002]
[1744465943463,0.237522,84203.0,84201.0,0.002]
[1744465943635,0.01,84203.0,84201.0,0.002]
[1744465944070,0.237524,84202.0,84201.0,0.002]
[1744465944243,0.386524,84202.0,84201.0,0.00213893]
[1744465945566,0.726524,84202.0,84201.0,0.00213893]
[1744465945775,0.195,84202.0,84201.0,0.00213893]
[1744465946010,0.195,84202.0,84201.0,0.12298047]
[1744465946011,0.15,84202.0,84201.0,0.12298047]
[1744465946219,0.061273,84221.0,84218.0,0.249351]
[1744465946220,0.0494,84221.0,84218.0,0.249351]
[1744465946421,0.0486,84235.0,84226.0,0.011872]
[1744465946622,0.011871,84233.0,84226.0,0.25170031]
[1744465946839,0.011871,84233.0,84227.0,0.011872]
[1744465946840,0.161871,84233.0,84227.0,0.011872]
[1744465946972,0.011872,84231.0,84226.0,0.249326]
[1744465947170,0.011872,84230.0,84226.0,0.249326]
[1744465947377,0.16,84230.0,84227.0,0.011872]
[1744465947644,0.16,84230.0,84228.0,0.23745]
[1744465947780,0.03,84229.0,84228.0,0.23982433]
[1744465947964,0.237355,84262.0,84228.0,0.23982433]
[1744465947965,0.0486,84263.0,84258.0,0.011868]
[1744465948164,0.0486,84263.0,84261.0,0.237357]
[1744465948165,0.1586,84263.0,84261.0,0.237357]
[1744465948363,0.1586,84263.0,84260.0,0.011868]
[1744465948638,0.03046359,84261.0,84260.0,0.011868]
[1744465948842,0.08046359,84261.0,84260.0,0.011868]
[1744465949227,0.08046359,84261.0,84258.0,0.37007354]
[1744465949228,0.08046359,84261.0,84258.0,0.011868]
[1744465949498,0.08046359,84261.0,84259.0,0.237363]
[1744465949934,0.011868,84258.0,84253.0,0.011869]
[1744465950114,0.011868,84258.0,84240.0,0.20948]
[1744465950115,0.01187,84244.0,84240.0,0.20948]
[1744465950316,0.01187,84239.0,84230.0,0.011872]
[1744465950537,0.249282,84242.0,84237.0,0.011871]
[1744465950676,0.02187,84242.0,84238.0,0.011871]
[1744465950887,0.01,84242.0,84240.0,0.237416]
[1744465951091,0.0458464,84270.0,84260.0,0.23736]
[1744465951309,0.05046359,84261.0,84256.0,0.249238]
[1744465951509,0.05046359,84261.0,84241.0,0.40819798]
[1744465951510,0.011868,84259.0,84248.0,0.237393]
[1744465951713,0.011868,84254.0,84246.0,0.011869]
[1744465952071,0.01187,84244.0,84241.0,0.40819798]
[1744465952284,0.011869,84248.0,84242.0,0.249279]
[1744465952420,0.011869,84247.0,84239.0,0.01187]
[1744465952622,0.011869,84247.0,84239.0,0.249287]
[1744465952623,0.01187,84244.0,84239.0,0.249287]
[1744465952828,0.237422,84239.0,84231.0,0.011872]
[1744465953054,0.03187,84239.0,84237.0,0.002]
[1744465953256,0.011871,84236.0,84231.0,0.011872]
[1744465953455,0.011869,84247.0,84242.0,0.01187]
[1744465953614,0.17,84247.0,84234.0,0.011871]
[1744465953812,0.17,84247.0,84235.0,0.011871]
[1744465953813,0.01187,84242.0,84235.0,0.011871]
[1744465954064,0.011871,84232.0,84220.0,0.249344]
[1744465954388,0.23745,84228.0,84222.0,0.011873]
[1744465954672,0.011871,84236.0,84231.0,0.011872]
[1744465954945,0.151871,84236.0,84230.0,0.011872]
[1744465955136,0.011871,84235.0,84231.0,0.002]
[1744465955340,0.12046331,84235.0,84233.0,0.011871]
[1744465955465,0.00046331,84235.0,84234.0,0.36569274]
[1744465955666,0.03046331,84235.0,84234.0,0.36569274]
[1744465955936,0.0491,84263.0,84262.0,0.237354]
[1744465956230,0.0491,84263.0,84262.0,0.23749293]
[1744465956231,0.1791,84263.0,84262.0,0.23749293]
[1744465956784,0.13,84263.0,84262.0,0.35833447]
[1744465957007,0.13,84263.0,84262.0,0.36574982]
[1744465958540,0.0008448,84274.0,84269.0,0.237335]
[1744465958793,0.0008448,84274.0,84269.0,0.36054951]
[1744465959008,0.0008448,84274.0,84269.0,0.35817654]
[1744465959544,0.0008448,84274.0,84269.0,0.36559189]
[1744465960647,0.0511,84289.0,84288.0,0.237281]
[1744465960889,0.2211,84289.0,84288.0,0.23965367]
[1744465961111,0.2211,84289.0,84288.0,0.237281]
[1744465961319,0.172,84289.0,84288.0,0.35812254]
[1744465961524,0.172,84289.0,84288.0,0.36553789]
[1744465961919,0.172,84289.0,84288.0,0.36567682]
[1744465962124,0.172,84289.0,84288.0,0.00755428]
[1744465962326,0.173,84289.0,84288.0,0.00755428]
[1744465962658,0.173,84289.0,84288.0,0.00013893]
[1744465962659,0.172,84289.0,84288.0,0.00013893]
[1744465962792,0.172,84289.0,84288.0,0.00755428]
[1744465963419,0.409278,84289.0,84288.0,0.00013893]
[1744465963627,0.172,84289.0,84288.0,0.00013893]
[1744465964425,0.409278,84289.0,84288.0,0.00013893]
[1744465964788,0.011864,84285.0,84281.0,0.237301]
[1744465964987,0.17,84285.0,84283.0,0.237294]
[1744465965191,0.24916,84283.0,84278.0,0.00741399]
[1744465965390,0.24916,84283.0,84274.0,0.23745824]
[1744465965391,0.011865,84279.0,84274.0,0.00013924]
[1744465965596,0.237316,84276.0,84274.0,0.00013924]
[1744465965796,0.407316,84276.0,84274.0,0.00013924]
[1744465966026,0.34,84275.0,84274.0,0.00013924]
[1744465966241,0.63084154,84275.0,84274.0,0.00013924]
[1744465966658,0.63084154,84275.0,84274.0,0.00113924]
[1744465966866,0.63084154,84275.0,84202.0,1.21582241]
[1744465966867,0.011869,84248.0,84236.0,0.011871]
[1744465967124,0.011869,84248.0,84243.0,0.237408]
[1744465967125,0.15,84248.0,84243.0,0.237408]
[1744465967330,0.15,84248.0,84246.0,0.237398]
[1744465967755,0.15,84248.0,84242.0,0.01200927]
[1744465967756,0.056969,84247.0,84242.0,0.23754927]
[1744465967960,0.1751,84247.0,84244.0,0.237403]
[1744465968160,0.1751,84247.0,84242.0,0.23754327]
[1744465968362,0.01187,84245.0,84242.0,0.00013927]
[1744465968588,0.15,84245.0,84242.0,0.00013927]
[1744465968759,0.148,84245.0,84243.0,0.237408]
[1744465970332,0.148,84245.0,84242.0,0.00313927]
[1744465970540,0.0220257,84244.0,84242.0,0.00313927]
[1744465970837,0.2020257,84244.0,84242.0,0.00313927]
[1744465970996,0.18,84244.0,84242.0,0.00013927]
[1744465971206,0.18,84244.0,84243.0,0.237408]
[1744465971404,0.18,84244.0,84243.0,0.238408]
[1744465971588,0.18,84244.0,84243.0,0.001]
[1744465971795,0.18,84244.0,84243.0,0.35824954]
[1744465972137,0.0451,84262.0,84260.0,0.23736]
[1744465972313,0.2051,84262.0,84260.0,0.23736]
[1744465972692,0.011868,84259.0,84251.0,0.237385]
[1744465972918,0.011868,84256.0,84245.0,0.237401]
[1744465973127,0.011869,84251.0,84243.0,0.001]
[1744465973328,0.17,84251.0,84248.0,0.237392]
[1744465973526,0.17,84251.0,84248.0,0.249261]
[1744465973749,0.17,84251.0,84250.0,0.237388]
[1744465974699,0.17,84251.0,84250.0,0.35822954]
[1744465974901,0.0461,84262.0,84261.0,0.237357]
[1744465975149,0.2061,84262.0,84261.0,0.237357]
[1744465975447,0.2051,84262.0,84261.0,0.237357]
[1744465976208,0.2071,84262.0,84261.0,0.237357]
[1744465976449,0.16,84262.0,84261.0,0.35819854]
[1744465976636,0.162,84262.0,84261.0,0.35819854]
[1744465976839,0.004,84262.0,84261.0,0.35819854]
[1744465977450,0.004,84262.0,84261.0,0.36561316]
[1744465977853,0.002,84262.0,84261.0,0.36561316]
[1744465978049,0.001,84262.0,84261.0,0.36561316]
[1744465978651,0.011864,84282.0,84275.0,0.237316]
[1744465978868,0.16,84282.0,84277.0,0.237311]
[1744465979074,0.16,84282.0,84279.0,0.237305]
[1744465979404,0.16,84282.0,84281.0,0.237301]
[1744465979998,0.16,84282.0,84281.0,0.23744027]
[1744465980394,0.16,84282.0,84281.0,0.24485452]
[1744465981134,0.162,84282.0,84281.0,0.36569606]
[1744465981338,0.002,84282.0,84281.0,0.36569606]
[1744465981557,0.002,84289.0,84288.0,0.237281]
[1744465981761,0.022,84289.0,84288.0,0.35812254]
[1744465982083,0.022,84289.0,84288.0,0.36553679]
[1744465982669,0.002,84289.0,84288.0,0.77373477]
[1744465984495,0.002,84289.0,84288.0,0.77673477]
[1744465985029,0.002,84289.0,84288.0,0.77373477]
[1744465985238,0.002,84289.0,84288.0,0.77673477]
[1744465985439,0.002,84289.0,84288.0,0.77873477]
[1744465985788,0.002,84289.0,84288.0,0.77673477]
[1744465985989,0.002,84289.0,84288.0,0.77873477]
[1744465986613,0.012,84289.0,84288.0,0.65789323]
[1744465986834,0.012,84289.0,84288.0,0.01041425]
[1744465987041,0.106264,84288.0,84283.0,0.24470925]
[1744465987222,0.237291,84285.0,84283.0,0.00741425]
[1744465987464,0.404291,84285.0,84283.0,0.00741425]
[1744465987596,0.237298,84282.0,84281.0,0.00013927]
[1744465987779,0.397298,84282.0,84281.0,0.00013927]
[1744465987985,0.16,84282.0,84281.0,0.23744027]
[1744465988185,0.158,84282.0,84281.0,0.00013927]
[1744465988602,0.27884154,84282.0,84281.0,0.00013927]
[1744465988802,0.61884154,84282.0,84281.0,0.00013927]
[1744465989380,0.157,84282.0,84281.0,0.00013927]
[1744465989725,0.157,84282.0,84281.0,0.12098081]
[1744465989923,0.159,84282.0,84281.0,0.12098081]
[1744465990183,0.159,84282.0,84281.0,0.12839557]
[1744465990406,0.002,84282.0,84281.0,0.13076827]
[1744465990591,0.002,84289.0,84288.0,0.237281]
[1744465990767,0.002,84289.0,84288.0,0.35812254]
[1744465991716,0.002,84289.0,84288.0,0.3655373]
[1744465991717,0.012,84289.0,84288.0,0.3655373]
[1744465991954,0.015,84289.0,84288.0,0.3655373]
[1744465992679,0.008,84289.0,84288.0,0.3655373]
[1744465993226,0.002,84289.0,84288.0,0.3655373]
[1744465993670,0.002,84289.0,84288.0,0.3685373]
[1744465994637,0.002,84289.0,84288.0,0.3665373]
[1744465995259,0.002,84289.0,84288.0,0.3675373]
[1744465995664,0.002,84289.0,84288.0,0.3685373]
[1744465996275,0.002,84289.0,84288.0,0.3665373]
[1744465996678,0.002,84289.0,84288.0,0.38307815]
[1744465998070,1e-06,84289.0,84288.0,0.79127613]
[1744465998275,7e-07,84304.0,84303.0,0.237239]
[1744465998471,7e-07,84304.0,84303.0,0.57285213]
[1744465998695,7e-07,84304.0,84303.0,0.57048054]
[1744465999101,7e-07,84304.0,84303.0,0.5778953]
[1744465999299,7e-07,84304.0,84303.0,0.3654953]
[1744465999499,7e-07,84304.0,84303.0,0.3664953]
[1744466000512,0.0004217,84308.0,84303.0,0.3664953]
[1744466000513,4e-07,84308.0,84307.0,0.25176885]
[1744466000720,4e-07,84308.0,84307.0,0.78080837]
[1744466000997,4e-07,84308.0,84307.0,1.12080837]
[1744466001241,4e-07,84308.0,84307.0,1.12822313]
[1744466001781,4e-07,84308.0,84307.0,1.1283624]
[1744466001895,4e-07,84308.0,84307.0,1.1293624]
[1744466002699,4e-07,84308.0,84307.0,1.11682155]
[1744466002906,4e-07,84308.0,84307.0,0.77682155]
[1744466003106,4e-07,84308.0,84307.0,0.77482155]
[1744466003551,4e-07,84308.0,84307.0,0.77682155]
[1744466003959,4e-07,84308.0,84307.0,0.77482155]
[1744466004200,1e-07,84315.0,84314.0,0.25174885]
[1744466004344,0.002,84319.0,84314.0,0.25174885]
[1744466004345,1e-07,84319.0,84318.0,0.25173785]
[1744466004546,1e-07,84319.0,84318.0,0.78077737]
[1744466005018,1e-07,84319.0,84318.0,0.78819213]
[1744466005206,0.0004224,84325.0,84324.0,0.25272085]
[1744466005207,4e-07,84325.0,84324.0,0.25272085]
[1744466005444,4e-07,84325.0,84324.0,0.37356239]
[1744466005773,4e-07,84325.0,84324.0,0.38097715]
[1744466006103,4e-07,84325.0,84324.0,0.78917513]
[1744466006310,4e-07,84334.0,84333.0,0.237155]
[1744466006505,4e-07,84334.0,84333.0,0.58794815]
[1744466006704,4e-07,84334.0,84333.0,0.57103654]
[1744466007131,4e-07,84334.0,84333.0,0.5784513]
[1744466007495,0.00046445,84334.0,84333.0,0.5784513]
[1744466007724,0.00046445,84334.0,84333.0,0.3654113]
[1744466008125,0.00046445,84334.0,84333.0,0.3664113]
[1744466008525,0.00046445,84334.0,84333.0,0.3654113]
[1744466008774,0.00046445,84334.0,84333.0,0.3664113]
[1744466009307,0.00046445,84334.0,84333.0,0.3674113]
[1744466010078,0.00046445,84334.0,84333.0,0.3664113]
[1744466010325,0.01046445,84334.0,84333.0,0.3674113]
[1744466010540,0.00046445,84334.0,84333.0,0.38195215]
[1744466010769,0.00046445,84334.0,84333.0,0.3664113]
[1744466010970,0.01046445,84334.0,84333.0,0.3664113]
[1744466011094,0.01046445,84334.0,84333.0,0.3674113]
[1744466011299,4.5e-07,84346.0,84345.0,0.25166185]
[1744466011526,4.5e-07,84346.0,84345.0,0.37264266]
[1744466011727,4.5e-07,84346.0,84345.0,0.36551657]
[1744466011956,0.01000045,84346.0,84345.0,0.12839557]
[1744466012170,0.01000045,84346.0,84345.0,0.00755403]
[1744466012359,0.01000045,84346.0,84345.0,0.00013927]
[1744466012949,0.01000045,84346.0,84345.0,0.00113927]
[1744466013780,0.05930045,84346.0,84345.0,0.00113927]
[1744466014157,0.05930045,84346.0,84345.0,0.00213927]
[1744466014676,0.05930045,84346.0,84345.0,0.00113927]
[1744466015057,0.0654305,84346.0,84345.0,0.00113927]
[1744466015258,0.05930045,84346.0,84345.0,0.00113927]
[1744466015844,0.01000045,84346.0,84345.0,0.00013927]
[1744466016043,0.01000045,84346.0,84345.0,0.00113927]
[1744466016293,4.5e-07,84349.0,84345.0,0.4238781]
[1744466016492,4.5e-07,84349.0,84348.0,0.25165285]
[1744466016708,4.5e-07,84349.0,84348.0,0.25906171]
[1744466017452,4.5e-07,84349.0,84348.0,0.66725969]
[1744466017656,4.5e-07,84349.0,84348.0,0.65271884]
[1744466018440,4.5e-07,84349.0,84348.0,0.65371884]
[1744466018938,4.5e-07,84349.0,84348.0,0.64630998]
[1744466019135,4.5e-07,84349.0,84348.0,0.64830998]
[1744466019784,0.01000045,84349.0,84348.0,0.64830998]
[1744466019983,4.5e-07,84349.0,84348.0,0.64830998]
[1744466020238,4.5e-07,84349.0,84348.0,0.64630998]
[1744466020618,0.01000045,84349.0,84348.0,0.64830998]
[1744466021645,0.01000045,84349.0,84348.0,0.66285083]
[1744466021869,0.0004217,84353.0,84352.0,0.237101]
[1744466022092,7e-07,84353.0,84352.0,0.25401219]
[1744466022334,7e-07,84353.0,84352.0,0.65983983]
[1744466022569,7e-07,84353.0,84352.0,0.78068137]
[1744466022973,7e-07,84353.0,84352.0,0.78808749]
[1744466023168,7e-07,84353.0,84352.0,0.78908749]
[1744466023684,7e-07,84353.0,84352.0,0.78808749]
[1744466024612,7e-07,84353.0,84352.0,0.78908749]
[1744466025663,7e-07,84353.0,84352.0,0.77654664]
[1744466025871,7e-07,84353.0,84352.0,1.13108749]
[1744466027479,7e-07,84353.0,84352.0,1.11654664]
[1744466027632,7e-07,84353.0,84352.0,1.13108749]
[1744466028561,7e-07,84353.0,84352.0,1.12908749]
[1744466028735,0.0476,84377.0,84352.0,1.12908749]
[1744466028736,0.0476,84377.0,84373.0,0.237042]
[1744466028940,0.0504219,84374.0,84373.0,0.76608082]
[1744466029750,0.0004219,84374.0,84373.0,0.78062167]
[1744466030071,0.0004219,84374.0,84373.0,0.788166]
[1744466031186,0.0004219,84374.0,84373.0,0.77362515]
[1744466031599,0.0004219,84374.0,84373.0,0.77462515]
[1744466031810,0.0004219,84374.0,84373.0,0.77562515]
[1744466032010,0.0004219,84374.0,84373.0,0.76822009]
[1744466032138,0.0004219,84374.0,84373.0,0.76722009]
[1744466032560,0.0004219,84374.0,84373.0,0.76922009]
[1744466033943,0.0004219,84374.0,84373.0,0.7766249]
[1744466034788,9e-07,84374.0,84373.0,0.7766249]
[1744466037228,9e-07,84374.0,84373.0,0.79216575]
[1744466037468,9e-07,84374.0,84373.0,0.79116575]
[1744466038229,0.0004214,84387.0,84382.0,0.237017]
[1744466038484,0.0004214,84387.0,84382.0,0.35785854]
[1744466038994,0.0004214,84387.0,84382.0,0.36526335]
[1744466039537,0.0004214,84387.0,84382.0,0.36626335]
[1744466039929,7e-07,84393.0,84392.0,0.236989]
[1744466040150,7e-07,84393.0,84392.0,0.36019964]
[1744466040426,7e-07,84393.0,84392.0,0.35783054]
[1744466040652,7e-07,84393.0,84392.0,0.36523535]
[1744466040653,0.0586007,84393.0,84392.0,0.36523535]
[1744466041110,0.0100007,84393.0,84392.0,0.36523535]
[1744466041335,7e-07,84393.0,84392.0,0.36623535]
[1744466041943,0.0200007,84393.0,84392.0,0.36523535]
[1744466042512,0.0200007,84393.0,84392.0,0.36623535]
[1744466042919,0.0200007,84393.0,84392.0,0.36523535]
[1744466043075,0.0200007,84393.0,84392.0,0.35783054]
[1744466043273,0.0200007,84393.0,84392.0,0.236989]
[1744466044096,0.0200007,84393.0,84392.0,0.35883054]
[1744466044681,0.0200007,84393.0,84392.0,0.35783054]
[1744466044891,0.0200007,84393.0,84392.0,0.35883054]
[1744466045235,0.0200007,84393.0,84392.0,0.12184154]
[1744466045457,0.0200007,84393.0,84392.0,0.12084154]
[1744466045843,0.0200007,84393.0,84392.0,0.12284154]
[1744466047141,0.0126724,84398.0,84397.0,0.236975]
[1744466047346,0.0126724,84398.0,84397.0,0.36018577]
[1744466047548,0.0126724,84398.0,84397.0,0.35781654]
[1744466048931,0.0126724,84398.0,84397.0,0.35881654]
[1744466051204,0.0226724,84398.0,84397.0,0.237975]
[1744466052098,0.0226724,84398.0,84397.0,0.35881654]
[1744466055596,0.0226724,84398.0,84397.0,0.237975]
[1744466055962,0.3094444,84398.0,84397.0,0.001]
[1744466056164,0.0724724,84398.0,84397.0,0.001]
[1744466057617,0.0724724,84398.0,84396.0,0.236977]
[1744466057863,0.0843204,84398.0,84397.0,0.001]
[1744466058020,0.0724724,84398.0,84397.0,0.001]
[1744466058437,0.0724724,84398.0,84396.0,0.236977]
[1744466058642,0.01185,84386.0,84381.0,0.237017]
[1744466058893,0.18,84386.0,84385.0,0.237007]
[1744466059189,0.18,84386.0,84377.0,0.011851]
[1744466059190,0.011851,84377.0,84373.0,0.05485323]
[1744466059362,0.18,84377.0,84373.0,0.05485323]
[1744466059526,0.18,84377.0,84376.0,0.237034]
[1744466060160,0.18,84377.0,84373.0,0.05485323]
[1744466060498,0.248885,84376.0,84373.0,0.05485323]
[1744466060690,0.248885,84376.0,84373.0,0.29189423]
[1744466060691,0.049,84375.0,84373.0,0.29189423]
[1744466060913,0.199,84375.0,84373.0,0.29189423]
[1744466061348,0.199,84375.0,84373.0,0.23718027]
[1744466061676,0.199,84375.0,84373.0,0.00013927]
[1744466061927,0.201,84375.0,84373.0,0.23718127]
[1744466062523,0.201,84375.0,84373.0,0.00013927]
[1744466062933,0.201,84375.0,84365.0,0.06656696]
[1744466062934,0.24891,84368.0,84365.0,0.05471396]
[1744466063253,0.284462,84366.0,84365.0,0.05485332]